Cogmind - Beta 16.1 @@@ ROGUE MODE // 2026.03.07 @ 13:02:50 Player: Endlessblaze Result: Destroyed by AW-AW1(R) with Subdweller Laser Performance ------------- Evolutions (0) 0 Regions Visited (2) 400 Robots Destroyed (10) 50 Value Destroyed (144) 144 Prototype IDs (0) 0 Alien Tech Used (0) 0 Bonus (0) 0 TOTAL SCORE: 594 Bonus ------- None Cogmind --------- Core Integrity 0/250 Matter 209/300 Energy 62/100 System Corruption 1% Temperature Cool (6) Movement Core (800) Ox15 Location -10/Subcaves Parts ------- > --- POWER (1) -------- (None) > --- PROPULSION (2) --- (None) > --- UTILITY (2) ------ High-capacity Storage Unit Subdweller Optics > --- WEAPON (2) ------- Subdweller Laser > --- INVENTORY (20) --- Scrap Shield Battle Rifle Scrap Shield Fragment (47) SUBCON Basin (Full) Peak State ------------ > --- POWER ------------ Subdweller Power Source > --- PROPULSION ------- Subdweller Monowheel Subdweller Monowheel > --- UTILITY ---------- High-capacity Storage Unit Subdweller Optics > --- WEAPON ----------- Subdweller Laser Battle Rifle > --- INVENTORY -------- Scrap Shield Grenade Launcher Mining Laser Scrap Shield Fragment SUBCON Basin [Rating: 31] Favorites ----------- Power Ion Engine Engine Ion Engine Propulsion Light Treads Treads Light Treads Wheel Subdweller Monowheel Utility High-capacity Storage Unit Device Seismic Detector Storage High-capacity Storage Unit Weapon Medium Laser Energy Gun Medium Laser Ballistic Gun Light Assault Rifle Launcher Grenade Launcher Special Weapon Mining Laser Build | -11 -10 -10 ------- Run | Yrd Mat Sub Slots Evolved . | . . . Power . | . . . Propulsion . | . . . Utility . | . . . Weapon . | . . . Parts Attached 21 | 7 1 13 Power 2 | 1 . 1 Engine 2 | 1 . 1 Core . | . . . Reactor . | . . . Propulsion 6 | 2 . 4 Treads 2 | 2 . . Leg . | . . . Wheel 4 | . . 4 Hover . | . . . Flight . | . . . Utility 5 | 2 1 2 Device 3 | 1 . 2 Storage 2 | 1 1 . Processor . | . . . Hackware . | . . . Protection . | . . . Artifact . | . . . Weapon 8 | 2 . 6 Energy Gun 3 | 2 . 1 Energy Cannon . | . . . Ballistic Gun 3 | . . 3 Ballistic Cannon . | . . . Launcher 1 | . . 1 Special Weapon 1 | . . 1 Impact Weapon . | . . . Slashing Weapon . | . . . Piercing Weapon . | . . . Special Melee Weapon . | . . . Unidentified Prototypes . | . . . Parts Lost 8 | . . 8 Power . | . . . Propulsion 4 | . . 4 Utility 1 | . . 1 Weapon 3 | . . 3 Highest Loss Streak 4 | . . 4 To Critical Strikes . | . . . Average Backups 9 | 3 10 10 Power . | . 1 . Propulsion 3 | 1 5 3 Utility 1 | . 1 1 Weapon 3 | . 3 4 Tool/Special . | . . . Unused Backups 8 | . . 8 Power 1 | . . 1 Propulsion 5 | . . 5 Utility 1 | . . 1 Weapon 1 | . . 1 Tool/Special . | . . . Average Slot Usage (%) 96 | . 100 92 Engine 13 | . 14 12 Treads 18 | . 28 8 Wheel 8 | . . 17 Device 13 | . 14 12 Storage 14 | . 14 14 Energy Gun 21 | . 28 14 Ballistic Gun 5 | . . 11 Peak Build Rating 31 | 8 8 31 Average Rating 11 | 5 8 17 On Entrance 5 | . 8 8 Avg Prop Armor Cover (%) 30 | 30 . . Naked Turns . | . . . Heaviest Build 53 | 15 50 53 Greatest Support 40 | 40 40 40 Greatest Overweight (x) 4 | 4 1 2 Average Overweight (x) . | . . 1 Largest Inventory Capacity 20 | 8 20 20 Average Capacity 17 | 7 19 20 Most Carried 20 | 8 13 20 Average Carried 12 | 3 10 18 Final Capacity 20 | 8 20 20 Final Carried 19 | 8 13 19 Class Distribution -------------------- 90% | Mutant 9% | Scavenger-Mutant Dominant Class ---------------- Mutant | -10/Materials Mutant | -10/Subcaves Resources | -11 -10 -10 ----------- Run | Yrd Mat Sub Matter Collected 337 | 260 27 50 Remotely . | . . . Salvage Created 295 | 153 47 95 Parts 21 | 10 6 5 Haulers Intercepted . | . . . Recyclers Shooed . | . . . Parts Field Recycled . | . . . Retrieved Matter . | . . . Parts Self-Destructed 8 | . . 8 Prevented . | . . . Parts Restored . | . . . Kills | -11 -10 -10 ------- Run | Yrd Mat Sub Combat Hostiles Destroyed 5 | . 3 2 Guns 5 | . 3 2 Classes Destroyed 4 | 2 1 1 Tunneler 4 | 4 . . Recycler 1 | 1 . . Swarmer 3 | . 3 . Subdweller 2 | . . 2 Best Kill Streak 3 | 3 3 2 Combat Bots Only 3 | . 3 2 Max Kills in Single Turn 1 | 1 1 1 Gunslinging . | . . . Exploded . | . . . Melee . | . . . Uniques/NPCs Destroyed . | . . . Combat | -11 -10 -10 -------- Run | Yrd Mat Sub Hostile Shots Fired 74 | . 16 58 Missed 23 | . 6 17 Hits 51 | . 10 41 Projectile 51 | . 10 41 Critical Strikes 1 | . . 1 Damage Taken 1046 | . 79 967 Core 262 | . . 262 Absorbed by Shields . | . . . Core Remaining (%) 100 | 100 . . Volleys Fired 29 | 7 8 14 Largest 2 | 2 2 2 Hottest 100 | 100 100 100 Shots Fired 51 | 14 16 21 Gun 47 | 14 16 17 Cannon . | . . . Launcher 2 | . . 2 Special 2 | . . 2 Kinetic 2 | . . 2 Thermal 47 | 14 16 17 Explosive 2 | . . 2 Electromagnetic . | . . . Robot Hit Streak 5 | 5 2 5 Robot Miss Streak 2 | 1 1 2 Penetration Max . | . . . Secondary Targets 1 | . . 1 Max Gunslinging Chain 1 | . . 1 Shots Hit Robots 28 | 11 5 12 Core Hits 17 | 5 3 9 Critical Kills . | . . . Critical Parts Destroyed . | . . . Critical Strikes 4 | 4 . . Burn 4 | 4 . . Melee Attacks . | . . . Impact . | . . . Slashing . | . . . Piercing . | . . . Sneak Attacks . | . . . Combat Hostiles . | . . . Follow-up Attacks . | . . . Damage Inflicted 843 | 138 73 632 Guns 346 | 138 73 135 Cannons . | . . . Explosions 492 | . . 492 Melee . | . . . Ramming 5 | . . 5 Kinetic . | . . . Thermal 346 | 138 73 135 Explosive 492 | . . 492 Electromagnetic . | . . . Impact . | . . . Slashing . | . . . Piercing . | . . . Highest Corruption 1 | . 1 1 Average Corruption 1 | . 1 1 Corruption Purged . | . . . Corruption Blocked . | . . . Effects 8 | . 2 6 Message Errors 1 | . . 1 Matter Fused 3 | . 1 2 Energy Discharges 1 | . . 1 Parts Rejected 1 | . . 1 Parts Fused 1 | . 1 . Data Loss (major) 1 | . . 1 Overload Shots . | . . . Overflow Damage . | . . . Projectiles . | . . . Explosions . | . . . Melee . | . . . Knockbacks . | . . . Impact . | . . . Kinetic . | . . . Secondary . | . . . Self-Inflicted Damage 2 | . . 2 Shots . | . . . Rammed 3 | . . 3 Targets Rammed 3 | . . 3 Kicked . | . . . Crushed . | . . . Highest Temperature 156 | 117 156 4 Average Temperature 60 | 53 78 2 Received Heat Transfer 267 | . . 267 Siege Activations . | . . . Martial Activations . | . . . Shielding Activations . | . . . Robots Disrupted . | . . . Combat Hostiles . | . . . Robots Corrupted . | . . . Combat Hostiles . | . . . Parts Fried . | . . . Impact Corruptions . | . . . Robots Melted 1 | 1 . . Combat Hostiles . | . . . Parts Melted 4 | 3 1 . Heat Transferred 1332 | 703 222 407 Parts Sabotaged . | . . . Parts Stolen . | . . . Parts Stripped . | . . . Power Chain Reactions . | . . . Alert | -11 -10 -10 ------- Run | Yrd Mat Sub Maximum Alert Level . | . . . Low Security (%) 100 | 100 100 . Level 1 . | . . . Level 2 . | . . . Level 3 . | . . . Level 4 . | . . . Level 5 . | . . . High Security . | . . . Max Security . | . . . Peak Influence 70 | 5 70 . Initial 3 | . 3 . Average 9 | . 13 . Influence Increases 109 | 25 84 . Destroy 0b10 Robot/C 60 | . 60 . Destroy 0b10 Robot/NC 25 | 25 . . Destroy Leader 10 | . 10 . Successful Hack 14 | . 14 . Influence Decreases 109 | 20 85 4 Entered New Map 5 | . 2 3 Time Decay 104 | 20 83 1 Squads Dispatched . | . . . Investigation . | . . . Extermination . | . . . Reinforcement . | . . . Assault . | . . . Garrison . | . . . Intercept . | . . . Searches Triggered . | . . . Construction Impeded . | . . . Haulers Reinforced . | . . . Active Scanning Responses . | . . . Cargo Convoy Interrupts . | . . . Stealth | -11 -10 -10 --------- Run | Yrd Mat Sub Distress Signals . | . . . Communications Jammed . | . . . Distress Signals . | . . . Times Spotted 15 | . 3 12 Peak Tracking Total 9 | . 3 9 Tactical Retreats . | . . . Traps | -11 -10 -10 ------- Run | Yrd Mat Sub Traps Triggered 1 | . 1 . Indirectly . | . . . Trap Hack Attempts . | . . . Triggered . | . . . Disarmed . | . . . Reprogrammed . | . . . Reused . | . . . Traps Extracted . | . . . Installed . | . . . Triggered . | . . . Machines | -11 -10 -10 ---------- Run | Yrd Mat Sub Machines Disabled . | . . . Max in Single Turn . | . . . Machines Repaired . | . . . Machines Dismantled . | . . . Machines Sabotaged . | . . . Overloaded Fab Kills . | . . . Hacking | -11 -10 -10 --------- Run | Yrd Mat Sub Machines Accessed 4 | . 2 2 Terminals 1 | . 1 . Fabricators . | . . . Repair Stations . | . . . Recycling Units 1 | . 1 . Scanalyzers . | . . . Garrison Access . | . . . Total Hacks 8 | . 5 3 Successful 5 | . 2 3 Failed 3 | . 3 . Catastrophic 1 | . 1 . Database Lockouts . | . . . Manual . | . . . Terminals 2 | . 2 . Fabricators . | . . . Repair Stations . | . . . Recycling Units 3 | . 3 . Scanalyzers . | . . . Garrison Access . | . . . Terminal Hacks 4 | . 1 3 Record 1 | . . 1 Robot Analysis 1 | . 1 . Open Door 1 | . . 1 Release Object 1 | . . 1 Fabricator Hacks . | . . . Repair Station Hacks . | . . . Recycling Unit Hacks 1 | . 1 . Report Inventory 1 | . 1 . Scanalyzer . | . . . Garrison Access Hacks . | . . . Unauthorized Hacks . | . . . Terminals . | . . . Fabricators . | . . . Repair Stations . | . . . Recycling Units . | . . . Scanalyzers . | . . . Garrison Access . | . . . Data Cores Recovered . | . . . Used . | . . . Hacking Detections 2 | . 2 . Full Trace Events . | . . . Feedback Events . | . . . Feedback Blocked . | . . . Robot Schematics Acquired . | . . . Robots Built . | . . . Authchips . | . . . Time . | . . . Total Robot Build Rating . | . . . Part Schematics Acquired . | . . . Parts Built . | . . . Authchips . | . . . Time . | . . . Total Part Build Rating . | . . . Part Studies Acquired . | . . . Parts Repaired . | . . . Time . | . . . Parts Recycled . | . . . Recycled Matter . | . . . Retrieved Matter . | . . . Retrieved Components . | . . . Parts Scanalyzed . | . . . Part Schematics Acquired . | . . . Parts Damaged . | . . . Bothacking | -11 -10 -10 ------------ Run | Yrd Mat Sub Used RIF Installer . | . . . Robots Hacked . | . . . Non-combat . | . . . Combat . | . . . Robot Hacks Applied . | . . . Relay Couplers Released . | . . . Fabnet Peak Effective % . | . . . Robots Rewired . | . . . Allies Hacked . | . . . Hacks Repelled . | . . . Allies | -11 -10 -10 -------- Run | Yrd Mat Sub Total Allies . | . . . Largest Group . | . . . Highest-Rated Group . | . . . Highest-Rated Ally . | . . . Total Orders . | . . . Ally Attacks . | . . . Total Damage . | . . . Kills . | . . . Allies Corrupted . | . . . Allies Melted . | . . . Intel | -11 -10 -10 ------- Run | Yrd Mat Sub Active Infowar (turns) 765 | 4 434 327 Optics 145 | . . 145 Terrain 91 | . . 91 Seismic 529 | 4 434 91 Robot Analysis Total 1 | . 1 . Derelict Logs Recovered . | . . . Drone Launches . | . . . Drone Recoveries . | . . . Exploration | -11 -10 -10 ------------- Run | Yrd Mat Sub Turns Passed 1032 | 212 434 386 Spaces Moved 469 | 113 149 207 Core 42 | 42 . . Treads 248 | 71 149 28 Legs . | . . . Wheels 179 | . . 179 Hover . | . . . Flight . | . . . Fastest Speed 50 | 50 160 115 Average Speed 170 | 154 231 135 Slowest Speed 250 | 250 240 240 Overloaded Moves . | . . . Propulsion Burnouts . | . . . Robots Hopped . | . . . Potential Cave-ins . | . . . Cave-ins Triggered . | . . . Exploration Rate (%) 14 | 5 21 16 Regions Visited 2 Branch Regions 1 Pre-discovered Areas . | . . . Known Exits Taken . | . . . Unknown Exits Taken 2 | 1 1 . Scrap Searched . | . . . Spaces Dug . | . . . Terrain Destroyed 13 | . . 13 Melee . | . . . Projectile . | . . . AOE 13 | . . 13 Terrain Rammed . | . . . Walls Destroyed . | . . . Machines Disabled . | . . . Actions | -11 -10 -10 --------- Run | Yrd Mat Sub Total 647 | 134 223 290 Wait 86 | . 60 26 Move 467 | 112 148 207 Hop . | . . . Pick Up 24 | 8 5 11 Fast Attach 7 | 7 . . Attach 11 | . . 11 Detach . | . . . Swap 4 | . 1 3 Drop 16 | . 1 15 Fire 29 | 7 8 14 Melee . | . . . Ram 3 | . . 3 Kick . | . . . Crush . | . . . Escape Stasis . | . . . Rewire . | . . . Trap . | . . . Miscellaneous . | . . . Route ------- -11/Scrapyard -10/Materials (discovered 2 exits: [*Mat] / *Sub) -10/Subcaves History --------- Turn | Location | Event 8 | -11/Scrapyard | Discovered new exit (range 16) 213 | -11/Scrapyard | Entered Materials 315 | -10/Materials | Build established: Mutant 517 | -10/Materials | Discovered new exit (range 16) 615 | -10/Materials | Discovered new exit (range 5) 647 | -10/Materials | Entered Subcaves 648 | -10/Subcaves | Shifting Twisted Machinery released Battle Rifle 648 | -10/Subcaves | Approached by a straggling Scientist 673 | -10/Subcaves | Shifting Twisted Machinery released Sub. Laser 786 | -10/Subcaves | Lost 4 parts (2n1u1w) 882 | -10/Subcaves | Found SUBCON Basin 962 | -10/Subcaves | Ambushed by swarm of Subdwellers 976 | -10/Subcaves | Core integrity fell below 50% 1030 | -10/Subcaves | Core integrity fell below 20% 1033 | -10/Subcaves | Destroyed by AW-AW1(R) with Subdweller Laser Last Messages --------------- 00882_ Acquired SUBCON Basin. PK-E6O(c): "I think it's somewhere south of here" 00918_ |LEKM/1WK6AQ=Z0 A,9:C PK-E6O(c): "I think it's somewhere south of here" 00965_ AF-3MB(R) angrily emerges from the Twisted Machinery. 00965_ ZO-WLX(R) emerges from the Twisted Machinery. 00972_ Grenade Launcher destroyed. 00978_ AL-JKP(R) affixes Scrap Shield Fragment to Scrap Shield. 00996_ Sub. Monowheel destroyed. 01005_ System corrupted: Sub. Power Source rejected. 01025_ Slammed into AW-AW1(R). 01025_ Sub. Optics broken. 01025_ Destabilizing: Short circuit. 01026_ Slammed into AW-AW1(R). 01026_ Sub. Monowheel destroyed. 01027_ Slammed into AW-AW1(R). 01029_ 18-K2J(R) destroyed. 01031_ Mining Laser destroyed. Map ----- +----------------------------------------------------+ | | | | | | | | | | | | | ????#????????????????????????????????????????????? | | ????#????????????????????????????????????????????? | | ??????#??????????????????????????????????????????? | | ??????#??????????????????????????????????????????? | | ?????????????????????????????????????????????????? | | ?????????????????????????????????????????????????? | | ?????????????????????????????????????????????????? | | ?????????????????????????????????????????????????? | | ??????#??????????????????????????????????????????? | | ?????????????????????????????????????????????????? | | ?########????????????????????????????????????????? | | ## ##???????????????????????????????????????? | | # #### #???????????????????????????????????????? | | # ##??## #???????????????????????????????????????? | | # #????# #####?????????####??????????????????????? | | # #????# #######??## ##?????????????????????? | | ##??## #? ##?# #?????????????????????? | | "####"" ##?# #?# ##????????????????????? | | """"""" ##?## #?## RR#????????????????????? | | "####### #### #??##@%!#????????????????????? | | """#????# # ##??# ! #????????????????????? | | " #????# ####RR #????????????????????? | | " #??### R #??????#?????????????? | | " #### ### RR ###### # # #????????? | | " "" #?# * #????????? | | # "" #### $ #????????? | | ### #?### # #### # #????????? | | ###?# #####?????????????????? | | #?# ##???????????????????? | | ## # #?# ###?????????????????? | | ##### ### ###???????????????? | | ### ### "# ### ????????? | | ### #??# #; #????????????? | | ??# ##?# #????????????? | | ??######### #?# ## #????????????? | | ??????????# #?### #?# ## #???????????? | | ??????????# ##?### ##?? #? #???????????? | | ?#????????# #??# #??? ?## #???????????? | | ?# ?????## ##?# ##???# #??# ?????????? | | ???# ???#" ### ##????? #??? ????????? | | ????# ## ""### #????? #???? ????????? | | ?????# # ##????? ##?????? ??????????? | | ?????# # ### ####???????????????????? | | ?# #??????????????????????? | +----------------------------------------------------+ Best States ------------- Heat Dissipation 25 Energy Generation 15 Energy Capacity 250 Matter Stores 300 Matter Capacity 300 Sight Range 21 Terrain Scan Range 16 Terrain Scan Density 10 Evasion (%) 50 Recoil Reduction 2 Item Schematics ----------------- None Robot Schematics ------------------ None Fabricated ------------ Nothing Repaired ---------- Nothing Studied --------- None Alien Tech Used ----------------- None Achievements -------------- None Challenges ------------ None Game ------ Seed MeleeBarrageLegs Manual? 0 Play Time 00:15:37 Cumulative 57.0 hours Start 2026.03.07 @ 11:33:23 End 2026.03.07 @ 13:02:50 Sessions 1 Manual Loads 0 Difficulty Rogue Special Mode None Game No. 81 Rogue 81 Adventurer 0 Explorer 0 Win Type - Total 0 Types 0/0/0/0/0/0/0/0/0/0 Lore% 42 Gallery% 33 Achievement% 25 Wizard Run 0 Options --------- Layout 1 ASCII 0 Keyboard 0 Movement Arrows Keybinds 0 Fullscreen 1 Font 16/SmallcapsGlow Map View 55x38 Zoom Use 0% Tactical HUD 1 Map Filters NONE Filters NONE Steam 1 RUN: 4cf4faa5-085e-4cf0-8853-6c422db63fc7